bitfinex/quotes_BTCUSD_20240827
["timestamp","ask_amount","ask_price","bid_price","bid_amount"]
[1724777436793,0.004821,61787.0,61786.0,1.075942]
[1724777437028,0.007821,61787.0,61786.0,0.752245]
[1724777437242,0.000821,61787.0,61786.0,0.752245]
[1724777437445,0.000821,61787.0,61786.0,0.8952112]
[1724777437675,0.000821,61787.0,61786.0,0.5715142]
[1724777437883,0.000821,61787.0,61786.0,0.8922112]
[1724777438180,0.000821,61787.0,61786.0,0.8952112]
[1724777438388,0.000821,61787.0,61786.0,0.2399662]
[1724777438598,0.000821,61787.0,61786.0,0.4048142]
[1724777438817,0.000821,61787.0,61786.0,0.7285112]
[1724777439032,0.000821,61787.0,61786.0,0.7255112]
[1724777439464,0.000821,61787.0,61786.0,0.7275112]
[1724777439890,0.000821,61787.0,61786.0,1.0532082]
[1724777440732,0.000821,61787.0,61786.0,1.70687065]
[1724777440962,0.000821,61787.0,61786.0,1.72987065]
[1724777441171,0.000821,61787.0,61786.0,1.74726938]
[1724777441600,0.000821,61787.0,61786.0,1.72987065]
[1724777441817,0.000821,61787.0,61786.0,1.74726827]
[1724777442922,0.000821,61787.0,61786.0,1.72426827]
[1724777443114,0.000821,61787.0,61786.0,1.74726827]
[1724777445218,0.000821,61787.0,61786.0,1.74726142]
[1724777448813,0.000821,61787.0,61786.0,1.71870011]
[1724777449023,0.000821,61787.0,61786.0,1.73610258]
[1724777450980,0.000821,61787.0,61786.0,1.08947393]
[1724777451197,0.000821,61787.0,61786.0,0.59577693]
[1724777451635,0.000821,61787.0,61786.0,0.91947393]
[1724777451851,0.000821,61787.0,61786.0,0.91948026]
[1724777454891,0.000821,61787.0,61786.0,1.09148026]
[1724777455104,0.000821,61787.0,61786.0,1.75810816]
[1724777455317,0.000821,61787.0,61786.0,1.43441116]
[1724777456633,0.000821,61787.0,61786.0,1.75810816]
[1724777457305,0.000821,61787.0,61786.0,1.25144571]
[1724777458205,0.000821,61787.0,61786.0,1.73510816]
[1724777458437,0.000821,61787.0,61786.0,1.75810816]
[1724777458892,0.000821,61787.0,61786.0,1.75809415]
[1724777459367,0.000821,61787.0,61786.0,1.75809533]
[1724777461110,0.000821,61787.0,61786.0,2.08179233]
[1724777461537,0.000821,61787.0,61786.0,2.09391774]
[1724777462625,0.000821,61787.0,61786.0,2.09191774]
[1724777463048,0.000821,61787.0,61786.0,2.08991774]
[1724777463267,0.000821,61795.0,61794.0,1.223996]
[1724777463473,0.000821,61795.0,61794.0,1.85229598]
[1724777463724,0.000821,61795.0,61794.0,1.86441706]
[1724777463941,0.000821,61795.0,61794.0,2.20322187]
[1724777464161,0.000821,61795.0,61794.0,1.86441706]
[1724777464371,0.000821,61795.0,61794.0,2.02438251]
[1724777464834,0.000821,61795.0,61794.0,2.02638251]
[1724777465044,0.000821,61795.0,61794.0,2.02838251]
[1724777465253,0.000821,61795.0,61794.0,2.01626143]
[1724777465908,0.000821,61795.0,61794.0,1.52550543]
[1724777467086,0.000821,61795.0,61794.0,1.54281831]
[1724777468211,0.000821,61795.0,61794.0,1.52542234]
[1724777468448,0.000821,61795.0,61794.0,1.54283222]
[1724777468943,0.000821,61795.0,61794.0,1.5602421]
[1724777469176,0.000821,61795.0,61794.0,1.07662065]
[1724777469398,0.000821,61795.0,61794.0,0.15613264]
[1724777469625,0.000821,61795.0,61794.0,0.05613264]
[1724777469885,0.000821,61795.0,61794.0,0.13872276]
[1724777470355,0.000821,61795.0,61794.0,0.29855076]
[1724777470604,0.000821,61795.0,61794.0,0.39213934]
[1724777471064,0.000821,61795.0,61794.0,0.39113934]
[1724777471322,0.155821,61800.0,61794.0,0.22931134]
[1724777472303,0.155821,61800.0,61794.0,0.39113834]
[1724777472523,0.155821,61800.0,61795.0,0.07148103]
[1724777472744,0.155821,61800.0,61795.0,0.33330503]
[1724777473405,0.155821,61800.0,61797.0,0.161819]
[1724777473406,0.005,61800.0,61797.0,0.161819]
[1724777473660,0.05754473,61803.0,61799.0,0.161812]
[1724777473661,0.009053,61803.0,61799.0,0.161812]
[1724777473877,0.009053,61803.0,61800.0,0.17636676]
[1724777474334,0.009053,61803.0,61801.0,0.161808]
[1724777474788,0.009053,61803.0,61802.0,0.485421]
[1724777475023,0.018053,61803.0,61802.0,0.485421]
[1724777475270,0.027053,61803.0,61802.0,0.485421]
[1724777475510,0.027053,61803.0,61802.0,1.04014018]
[1724777475730,0.027053,61803.0,61802.0,1.50175246]
[1724777476172,0.018053,61803.0,61802.0,1.50175246]
[1724777476466,0.009053,61803.0,61802.0,1.50175246]
[1724777476684,0.018053,61803.0,61802.0,1.73411791]
[1724777476900,0.027053,61803.0,61802.0,1.73511791]
[1724777477119,0.036053,61803.0,61802.0,1.73611791]
[1724777477542,0.027053,61803.0,61802.0,1.75283062]
[1724777477969,0.009053,61803.0,61802.0,1.75183062]
[1724777478432,0.009053,61803.0,61802.0,2.07544462]
[1724777478647,0.009053,61803.0,61802.0,2.07543392]
[1724777478866,0.009053,61803.0,61802.0,1.7639335]
[1724777479096,0.009053,61803.0,61802.0,1.75182397]
[1724777479992,0.011053,61803.0,61802.0,1.76982397]
[1724777480664,0.011053,61803.0,61802.0,1.76282397]
[1724777480665,0.010053,61803.0,61802.0,1.76282397]
[1724777481141,0.001,61803.0,61802.0,1.77282397]
[1724777481370,0.00904201,61813.0,61812.0,0.16178]
[1724777481577,0.00904201,61813.0,61812.0,1.51670601]
[1724777481782,0.00904201,61813.0,61812.0,1.85765771]
[1724777481998,0.00904201,61813.0,61812.0,1.91174804]
[1724777482208,0.00904201,61813.0,61812.0,1.92913618]
[1724777483035,0.01004201,61813.0,61812.0,1.93813618]
[1724777483253,0.00904201,61817.0,61816.0,1.23189]
[1724777483464,0.00904201,61817.0,61816.0,1.93328359]
[1724777484359,0.10124201,61834.0,61833.0,0.808627]
[1724777484360,0.00904201,61834.0,61833.0,0.808627]
[1724777484593,0.00904201,61834.0,61833.0,0.908627]
[1724777484839,0.00904201,61834.0,61833.0,0.1]
[1724777484840,0.17394201,61834.0,61833.0,0.1]
[1724777485533,0.10174201,61834.0,61833.0,0.261725]
[1724777485739,0.10174201,61834.0,61833.0,0.585176]
[1724777485740,0.00904201,61834.0,61833.0,0.585176]
[1724777486593,0.01004201,61834.0,61833.0,0.1]
[1724777486802,0.10344201,61834.0,61833.0,0.261725]
[1724777487017,0.11144201,61834.0,61833.0,0.262725]
[1724777487225,0.11144201,61834.0,61833.0,0.35543038]
[1724777487447,0.11144201,61834.0,61833.0,0.35443038]
[1724777487448,0.10344201,61834.0,61833.0,0.35443038]
[1724777488316,0.00904201,61834.0,61833.0,0.35443038]
[1724777488528,0.00904201,61834.0,61833.0,0.67788138]
[1724777489245,0.00904201,61834.0,61833.0,0.19270538]
[1724777489433,0.00904201,61834.0,61833.0,0.1]
[1724777490214,0.00904201,61834.0,61827.0,0.0178042]
[1724777490215,0.17464201,61834.0,61827.0,0.0178042]
[1724777490426,0.17464201,61834.0,61819.0,0.1]
[1724777490427,0.074,61832.0,61819.0,0.1]
[1724777490657,0.074,61830.0,61820.0,0.15996545]
[1724777490856,0.0894,61829.0,61821.0,0.1]
[1724777491458,0.0894,61829.0,61823.0,0.161749]
[1724777491677,0.0894,61829.0,61821.0,0.261756]
[1724777492508,0.0894,61829.0,61822.0,0.161753]
[1724777492720,0.0894,61829.0,61823.0,0.133731]
[1724777492923,0.0894,61829.0,61824.0,0.161749]
[1724777493132,0.0794,61829.0,61825.0,0.1]
[1724777493340,0.0824,61829.0,61825.0,0.1]
[1724777493536,0.006,61829.0,61825.0,0.1]
[1724777493744,0.003,61829.0,61826.0,0.0555437]
[1724777493953,0.074,61830.0,61826.0,0.0555437]
[1724777494172,0.006,61829.0,61826.0,0.0555437]
[1724777494400,0.003,61829.0,61826.0,0.0555437]
[1724777494623,0.074,61830.0,61826.0,0.0555437]
[1724777494856,0.003,61829.0,61827.0,0.06745327]
[1724777495063,0.003,61829.0,61827.0,0.16745327]
[1724777495499,0.003,61829.0,61827.0,0.1]
[1724777495737,0.006,61829.0,61827.0,0.1]
[1724777496214,0.0919,61829.0,61826.0,0.01761027]
[1724777496449,0.0949,61829.0,61824.0,0.161748]
[1724777496660,0.0949,61829.0,61825.0,0.1]
[1724777496875,0.0949,61829.0,61826.0,0.0817189]
[1724777497117,0.0919,61829.0,61826.0,0.0817189]
[1724777497326,0.0949,61829.0,61826.0,0.0817189]
[1724777497530,0.0979,61829.0,61826.0,0.0817189]
[1724777497991,0.0979,61829.0,61824.0,0.1]
[1724777498153,0.0979,61829.0,61821.0,0.1]
[1724777498384,0.005,61826.0,61821.0,0.1]
[1724777498592,0.005,61826.0,61819.0,0.01730612]
[1724777498593,0.0896,61825.0,61819.0,0.01730612]
[1724777498794,0.0896,61825.0,61820.0,0.07495751]
[1724777499429,0.0896,61825.0,61817.0,0.261766]
[1724777499430,0.0896,61825.0,61817.0,0.11804158]
[1724777499674,0.0756,61824.0,61817.0,0.1]
[1724777499900,0.0957,61823.0,61819.0,0.001]
[1724777500117,0.0725,61822.0,61819.0,0.001]
[1724777500357,0.0725,61822.0,61811.0,0.161782]
[1724777500358,0.0957,61821.0,61820.0,0.001]
[1724777500819,0.0957,61821.0,61820.0,0.002]
[1724777500820,0.1007,61821.0,61820.0,0.002]
[1724777501065,0.35088545,61821.0,61820.0,0.002]
[1724777501309,0.33356545,61821.0,61820.0,0.002]
[1724777501531,0.33356545,61821.0,61820.0,0.001]
[1724777501532,0.35891225,61821.0,61820.0,0.001]
[1724777501762,0.33356545,61821.0,61820.0,0.001]
[1724777501995,0.172,61820.0,61801.0,0.01775518]
[1724777502221,0.172,61817.0,61801.0,0.01775518]
[1724777502446,0.0979,61815.0,61800.0,0.1627162]
[1724777502663,0.25786545,61815.0,61800.0,0.0009042]
[1724777503118,0.0751,61809.0,61800.0,0.0009042]
[1724777503346,0.005,61803.0,61800.0,0.0009042]
[1724777503582,0.005,61801.0,61800.0,0.0019042]
[1724777504069,0.005,61801.0,61800.0,0.0009042]
[1724777504320,0.0751,61802.0,61800.0,0.0019042]
[1724777504760,0.0751,61802.0,61800.0,0.0009042]
[1724777505397,0.0751,61802.0,61800.0,0.0019042]
[1724777505870,0.0751,61802.0,61800.0,0.0009042]
[1724777506504,0.0751,61802.0,61800.0,0.0029042]
[1724777506938,0.0751,61802.0,61800.0,0.0009042]
[1724777511677,0.005,61801.0,61800.0,0.0009042]
[1724777511892,0.0957,61801.0,61800.0,0.0009042]
[1724777512109,0.32936545,61801.0,61800.0,0.0009042]
[1724777512795,0.37764833,61801.0,61800.0,0.0009042]
[1724777513022,0.54445733,61801.0,61800.0,0.0009042]
[1724777513241,0.53016261,61801.0,61800.0,0.0009042]
[1724777513472,0.47687973,61801.0,61800.0,0.0009042]
[1724777513708,0.48087973,61801.0,61800.0,0.0019042]
[1724777513926,0.49187973,61801.0,61800.0,0.0029042]
[1724777514399,0.49187973,61801.0,61800.0,0.0019042]
[1724777514400,0.48087973,61801.0,61800.0,0.0019042]
[1724777514607,0.49187973,61801.0,61800.0,0.0029042]
[1724777514835,0.65368873,61801.0,61800.0,0.0029042]
[1724777515061,1.13111773,61801.0,61800.0,0.0019042]
[1724777515277,1.13111773,61801.0,61800.0,0.0029042]
[1724777515278,1.37035106,61801.0,61800.0,0.0029042]
[1724777515506,1.14567819,61801.0,61800.0,0.0029042]
[1724777515746,0.66025019,61801.0,61800.0,0.0029042]
[1724777516005,0.82205919,61801.0,61800.0,0.0029042]
[1724777516208,0.1752,61787.0,61786.0,0.0009042]
[1724777516422,0.33516545,61787.0,61786.0,0.0009042]
[1724777517050,0.49701145,61787.0,61786.0,0.0009042]
[1724777517253,0.83670345,61787.0,61786.0,0.0019042]
[1724777517464,1.27909447,61787.0,61786.0,0.0019042]
[1724777517671,0.34616545,61787.0,61786.0,0.0019042]
[1724777518310,0.33516545,61787.0,61786.0,0.0009042]
[1724777518516,0.34016545,61787.0,61786.0,0.0019042]
[1724777518722,0.33516545,61787.0,61786.0,0.0009042]
[1724777518925,0.33516545,61787.0,61786.0,0.0019042]
[1724777519171,0.34016545,61787.0,61786.0,0.0019042]
[1724777519622,0.37418199,61787.0,61786.0,0.0019042]
[1724777520182,0.78806655,61787.0,61786.0,0.0019042]
[1724777520381,0.38818199,61787.0,61786.0,0.0019042]
[1724777520871,0.37418199,61787.0,61786.0,0.0019042]
[1724777521124,0.41354529,61787.0,61786.0,0.0019042]
[1724777521769,0.57539129,61787.0,61786.0,0.0019042]
[1724777521922,0.89908329,61787.0,61786.0,0.0019042]
[1724777522944,0.41354529,61787.0,61786.0,0.0019042]
[1724777525342,0.38818199,61787.0,61786.0,0.0019042]
[1724777528641,0.89908352,61787.0,61786.0,0.0019042]
[1724777528875,1.22277552,61787.0,61786.0,0.0019042]
[1724777529288,0.89908352,61787.0,61786.0,0.0019042]
[1724777530779,0.37952898,61787.0,61786.0,0.0019042]
[1724777535413,0.35416545,61787.0,61786.0,0.0019042]
[1724777535858,0.83970345,61787.0,61786.0,0.0019042]
[1724777536081,1.16839545,61787.0,61786.0,0.0019042]
[1724777536757,1.49208745,61787.0,61786.0,0.0019042]
[1724777537005,1.6520529,61787.0,61786.0,0.0019042]
[1724777537900,1.3283609,61787.0,61786.0,0.0019042]
[1724777538616,1.35372674,61787.0,61786.0,0.0019042]
[1724777544669,1.03003474,61787.0,61786.0,0.0019042]
[1724777544938,0.37953129,61787.0,61786.0,0.0019042]
[1724777545166,0.18396545,61787.0,61786.0,0.0019042]
[1724777548086,0.18396545,61787.0,61786.0,0.0981042]
[1724777548298,0.20932685,61787.0,61786.0,0.0981042]
[1724777548961,0.19532685,61787.0,61786.0,0.0981042]
[1724777549403,0.20432685,61787.0,61786.0,0.0971042]
[1724777549617,0.20432685,61787.0,61786.0,0.0981042]
[1724777549857,0.21575953,61787.0,61786.0,0.0019042]
[1724777550071,0.22575953,61787.0,61786.0,0.0009042]
[1724777550294,0.32365953,61787.0,61786.0,0.0009042]
[1724777550755,0.31365953,61787.0,61786.0,0.0009042]
[1724777550974,0.31865953,61787.0,61786.0,0.0019042]
[1724777552105,0.33165953,61787.0,61786.0,0.0019042]
[1724777552311,0.37992927,61787.0,61786.0,0.0019042]
[1724777552521,0.31865953,61787.0,61786.0,0.0019042]
[1724777552944,0.32865953,61787.0,61786.0,0.0019042]
[1724777553374,0.23075953,61787.0,61786.0,0.0019042]
[1724777553573,0.27910248,61787.0,61786.0,0.0019042]
[1724777553843,0.23075953,61787.0,61786.0,0.0019042]
[1724777554003,0.27910337,61787.0,61786.0,0.0019042]
[1724777554416,0.30316415,61787.0,61786.0,0.0019042]
[1724777554996,0.23075953,61787.0,61786.0,0.0019042]
[1724777555178,0.3514339,61787.0,61786.0,0.0019042]
[1724777555401,1.18392813,61787.0,61786.0,0.0019042]
[1724777555625,0.86023613,61787.0,61786.0,0.0019042]
[1724777556056,1.02314653,61787.0,61786.0,0.0019042]
[1724777556271,1.32683853,61787.0,61786.0,0.0009042]
[1724777556475,1.17792813,61787.0,61786.0,0.0009042]
[1724777556702,1.18292813,61787.0,61786.0,0.0019042]
[1724777556959,1.18292813,61787.0,61786.0,0.0009042]
[1724777556960,1.16392813,61787.0,61786.0,0.0009042]
[1724777557367,1.16892813,61787.0,61786.0,0.0019042]
[1724777558465,1.18292813,61787.0,61786.0,0.0019042]
[1724777558679,1.20829334,61787.0,61786.0,0.0019042]
[1724777560540,1.30829334,61787.0,61786.0,0.0019042]
[1724777560763,1.63198534,61787.0,61786.0,0.0019042]
[1724777560981,1.24112556,61775.0,61774.0,0.0009031]
[1724777561205,1.40109101,61775.0,61774.0,0.0009031]
[1724777561431,1.52409101,61775.0,61774.0,0.0009031]
[1724777561849,1.54946033,61775.0,61774.0,0.0009031]
[1724777562912,0.30433477,61775.0,61774.0,0.0009031]
[1724777563129,0.22075774,61775.0,61774.0,0.0009031]
[1724777563356,0.39826031,61775.0,61774.0,0.0009031]
[1724777563579,0.23475774,61775.0,61774.0,0.0009031]
[1724777565370,0.20938842,61775.0,61774.0,0.0009031]
[1724777566616,0.69730398,61775.0,61774.0,0.0009031]
[1724777567350,1.02105898,61775.0,61774.0,0.0009031]
[1724777568456,0.28338842,61775.0,61774.0,0.0009031]
[1724777568662,0.44526542,61775.0,61774.0,0.0009031]
[1724777569490,0.4467518,61775.0,61774.0,0.0009031]
[1724777569924,0.20938842,61775.0,61774.0,0.0009031]
[1724777570361,0.2347564,61775.0,61774.0,0.0009031]
[1724777570569,0.3966334,61775.0,61774.0,0.0009031]
[1724777571204,0.2347564,61775.0,61774.0,0.0009031]
[1724777572832,0.55999678,61775.0,61774.0,0.0009031]
[1724777573052,0.3966334,61775.0,61774.0,0.0009031]
[1724777573260,0.7203884,61775.0,61774.0,0.0009031]
[1724777574141,0.7253884,61775.0,61774.0,0.0009031]
[1724777574354,0.8177884,61775.0,61774.0,0.0009031]
[1724777576337,0.8177884,61775.0,61774.0,0.01900194]
[1724777576545,0.4940334,61775.0,61774.0,0.01900194]
[1724777576768,0.8177884,61775.0,61774.0,0.01900194]
[1724777576975,0.4940334,61775.0,61774.0,0.01900194]
[1724777577211,0.8177884,61775.0,61774.0,0.01900194]
[1724777577439,0.4940334,61775.0,61774.0,0.01900194]
[1724777577865,0.46866542,61775.0,61774.0,0.01900194]
[1724777578096,0.20938842,61775.0,61774.0,0.01900194]
[1724777579272,0.37274714,61775.0,61774.0,0.01900194]
[1724777579497,0.20938842,61775.0,61774.0,0.01900194]
[1724777581203,0.37126542,61775.0,61774.0,0.01900194]
[1724777581409,0.70002042,61775.0,61774.0,0.01900194]
[1724777583066,0.70002042,61775.0,61774.0,0.01904194]
[1724777584727,0.86328317,61775.0,61774.0,0.01904194]
[1724777585170,0.53952817,61775.0,61774.0,0.01904194]
[1724777585371,0.53452817,61775.0,61774.0,0.01904194]
[1724777585783,0.47505117,61775.0,61774.0,0.01904194]
[1724777585955,0.63692817,61775.0,61774.0,0.01904194]
[1724777587306,0.47366542,61775.0,61774.0,0.01904194]
[1724777589154,0.31178842,61775.0,61774.0,0.01904194]
[1724777589363,0.47366542,61775.0,61774.0,0.01904194]
[1724777589788,0.79742042,61775.0,61774.0,0.01904194]
[1724777589991,0.47366542,61775.0,61774.0,0.01904194]
[1724777591054,0.37752613,61775.0,61774.0,0.01904194]
[1724777591267,0.37252613,61775.0,61774.0,0.01904194]
[1724777592139,0.86315813,61775.0,61774.0,0.01904194]
[1724777592343,0.70002042,61775.0,61774.0,0.01904194]
[1724777593423,1.36647542,61775.0,61774.0,0.01904194]
[1724777593653,1.69023042,61775.0,61774.0,0.01904194]
[1724777594322,1.67623042,61775.0,61774.0,0.01904194]
[1724777594763,1.86093042,61775.0,61774.0,0.01904194]
[1724777595207,1.84693042,61775.0,61774.0,0.01904194]
[1724777595407,1.83293042,61775.0,61774.0,0.01904194]
[1724777595620,0.988545,61763.0,61754.0,4e-05]
[1724777595853,1.42354901,61763.0,61754.0,4e-05]
[1724777596065,1.84736701,61763.0,61754.0,4e-05]
[1724777597129,1.52354901,61763.0,61762.0,0.01901429]
[1724777597351,1.53754901,61763.0,61762.0,0.01901429]
[1724777597563,1.55798169,61763.0,61762.0,0.0009031]
[1724777597986,1.88179969,61763.0,61762.0,0.0009031]
[1724777598209,1.60676113,61763.0,61762.0,0.0009031]
[1724777598425,1.87279969,61763.0,61762.0,0.01817343]
[1724777598630,1.85879969,61763.0,61762.0,0.01817343]
[1724777598845,1.88417367,61763.0,61762.0,0.0009031]
[1724777599059,1.89817367,61763.0,61762.0,0.0009031]
[1724777600126,1.89317367,61763.0,61762.0,0.0009031]
[1724777600354,1.88417367,61763.0,61762.0,0.0009031]
[1724777600578,1.89817367,61763.0,61762.0,0.0009031]
[1724777600805,1.88417367,61763.0,61762.0,0.0009031]
[1724777601072,1.65513511,61763.0,61762.0,0.0009031]
[1724777601285,1.99295311,61763.0,61762.0,0.0009031]
[1724777601529,1.56864856,61755.0,61754.0,4e-05]
[1724777601745,2.17547401,61755.0,61754.0,0.01815302]
[1724777601973,2.17547401,61755.0,61754.0,4e-05]
[1724777602206,1.85161401,61755.0,61754.0,4e-05]
[1724777602423,1.89341782,61755.0,61754.0,4e-05]
[1724777603058,1.64137926,61755.0,61754.0,4e-05]
[1724777603274,1.65537926,61755.0,61754.0,4e-05]
[1724777603458,1.63237926,61755.0,61754.0,4e-05]
[1724777604559,1.88441782,61755.0,61754.0,4e-05]
[1724777604732,1.63237926,61755.0,61754.0,8e-05]
[1724777605295,1.60699842,61755.0,61754.0,8e-05]
[1724777606323,1.63238275,61755.0,61754.0,8e-05]
[1724777606506,1.64638275,61755.0,61754.0,8e-05]
[1724777607515,1.66938275,61755.0,61754.0,8e-05]
[1724777607967,0.22194,61751.0,61742.0,0.1]
[1724777608189,1.30306745,61751.0,61742.0,0.1]
[1724777608403,1.62694845,61751.0,61750.0,0.01760479]
[1724777608542,1.62694845,61751.0,61750.0,4e-05]
[1724777608910,1.65233025,61751.0,61750.0,4e-05]
[1724777609037,1.67276293,61751.0,61750.0,4e-05]
[1724777609238,1.70076293,61751.0,61750.0,4e-05]
[1724777609987,1.36183,61743.0,61742.0,0.1]
[1724777610221,1.36183,61743.0,61742.0,0.12243513]
[1724777610222,1.62179545,61743.0,61742.0,0.12243513]
[1724777610419,1.62179545,61743.0,61732.0,0.009042]
[1724777610420,1.310648,61742.0,61732.0,0.009042]
[1724777610649,1.57061345,61742.0,61732.0,0.009042]
[1724777610839,1.57061345,61742.0,61741.0,0.02327042]
[1724777611044,1.73325811,61742.0,61741.0,0.000822]
[1724777611262,1.58703642,61742.0,61741.0,0.000822]
[1724777611456,0.61525242,61742.0,61741.0,0.000822]
[1724777611675,0.93918042,61742.0,61741.0,0.000822]
[1724777612221,1.11152647,61742.0,61741.0,0.000822]
[1724777612625,0.62563447,61742.0,61741.0,0.000822]
[1724777612871,0.31438842,61742.0,61741.0,0.000822]
[1724777613072,0.97298042,61742.0,61741.0,0.000822]
[1724777613274,0.64905242,61742.0,61741.0,0.000822]
[1724777613458,0.31438842,61742.0,61741.0,0.000822]
[1724777613904,0.4346552,61742.0,61741.0,0.000822]
[1724777614458,0.31438842,61742.0,61741.0,0.000862]
[1724777614673,0.30038842,61742.0,61741.0,0.000862]
[1724777614884,0.42065549,61742.0,61741.0,0.000862]
[1724777615177,0.30038842,61742.0,61741.0,0.000862]
[1724777615389,0.43465549,61742.0,61741.0,0.000862]
[1724777615588,0.31438842,61742.0,61741.0,0.000862]
[1724777616114,0.57525242,61742.0,61741.0,0.000862]
[1724777616313,0.64725242,61742.0,61741.0,0.000862]
[1724777616561,0.97118042,61742.0,61741.0,0.000862]
[1724777616935,1.29510842,61742.0,61741.0,0.000862]
[1724777617579,1.28110842,61742.0,61741.0,0.000862]
[1724777618005,1.77573642,61742.0,61741.0,0.000862]
[1724777618429,1.28110842,61742.0,61741.0,0.000862]
[1724777618650,0.30038842,61742.0,61741.0,0.000862]
[1724777618859,0.28638842,61742.0,61741.0,0.000862]
[1724777619086,0.40654662,61742.0,61741.0,0.000862]
[1724777619312,0.31438842,61742.0,61741.0,0.000862]
[1724777619508,0.30038842,61742.0,61741.0,0.000862]
[1724777619721,0.28638842,61742.0,61741.0,0.000862]
[1724777620171,0.30038842,61742.0,61741.0,0.000862]
[1724777621059,0.31438842,61742.0,61741.0,0.000862]
[1724777621917,0.47635242,61742.0,61741.0,0.000862]
[1724777623808,0.31438842,61742.0,61741.0,0.000862]
[1724777624692,0.31521042,61742.0,61741.0,0.000862]
[1724777626057,0.47717442,61742.0,61741.0,0.000862]
[1724777628433,0.31521042,61742.0,61741.0,0.000862]
[1724777628911,0.47717442,61742.0,61741.0,0.000862]
[1724777629622,0.31521042,61742.0,61741.0,0.000862]
[1724777630115,0.47717442,61742.0,61741.0,0.000862]
[1724777630362,0.31521042,61742.0,61741.0,0.000862]
[1724777630608,0.47717442,61742.0,61741.0,0.000862]
[1724777630829,0.80110242,61742.0,61741.0,0.000862]
[1724777631059,0.47717442,61742.0,61741.0,0.000862]
[1724777632936,0.31521042,61742.0,61741.0,0.000862]
[1724777634592,0.89980242,61742.0,61741.0,0.000862]
[1724777634831,0.57587442,61742.0,61741.0,0.000862]
[1724777635505,0.73840823,61742.0,61741.0,0.000862]
[1724777635999,1.06233623,61742.0,61741.0,0.000862]
[1724777636254,0.383975,61733.0,61732.0,0.009042]
[1724777636485,1.29970245,61733.0,61732.0,0.009042]
[1724777636690,0.97572745,61733.0,61732.0,0.009042]
[1724777637888,0.98972745,61733.0,61732.0,0.009042]
[1724777638150,0.97572745,61733.0,61732.0,0.009042]
[1724777638366,0.97572745,61733.0,61715.0,0.1731]
[1724777638367,0.171998,61729.0,61715.0,0.1731]
[1724777638590,0.84985945,61729.0,61715.0,0.1731]
[1724777638799,0.36386545,61729.0,61717.0,0.02227817]
[1724777639251,0.52586345,61729.0,61717.0,0.02227817]
[1724777639498,0.62479613,61729.0,61717.0,0.02227817]
[1724777640204,0.94879213,61729.0,61717.0,0.02227817]
[1724777640662,0.46279813,61729.0,61717.0,0.02227817]
[1724777640899,0.06,61725.0,61717.0,0.02227817]
[1724777641113,0.72241342,61725.0,61717.0,0.02227817]
[1724777641337,0.82241342,61725.0,61717.0,0.02227817]
[1724777641617,0.496057,61721.0,61717.0,0.02227817]
[1724777641835,1.34822245,61721.0,61712.0,0.009042]
[1724777642041,1.34822245,61721.0,61714.0,0.02199687]
[1724777642042,1.57388676,61721.0,61714.0,0.02199687]
[1724777642579,0.31203856,61713.0,61712.0,0.009042]
[1724777642836,0.74150401,61713.0,61712.0,0.009042]
[1724777643085,0.74150401,61713.0,61700.0,0.009082]
[1724777643086,1.093629,61712.0,61700.0,0.009082]
[1724777643259,1.49686968,61712.0,61700.0,0.009082]
[1724777643499,1.01074068,61712.0,61700.0,0.009082]
[1724777643702,1.17346344,61712.0,61700.0,0.009082]
[1724777644160,1.01074068,61712.0,61710.0,0.02229158]
[1724777644883,0.41324068,61712.0,61710.0,0.02229158]
[1724777645129,0.26996545,61712.0,61710.0,0.02229158]
[1724777645348,0.28396545,61712.0,61710.0,0.02229158]
[1724777645789,0.26996545,61712.0,61710.0,0.02229158]
[1724777646009,0.40446423,61712.0,61711.0,0.1719]
[1724777646218,0.22941187,61712.0,61711.0,0.1719]
[1724777647065,0.27941187,61712.0,61711.0,0.0004]
[1724777647314,0.26541187,61712.0,61711.0,0.0004]
[1724777647727,0.23396545,61712.0,61711.0,0.0004]
[1724777647936,0.33046545,61712.0,61711.0,0.0004]
[1724777648146,0.31646545,61712.0,61711.0,0.0004]
[1724777648354,0.41646545,61712.0,61711.0,0.001222]
[1724777648561,0.43046545,61712.0,61711.0,0.001222]
[1724777648807,0.51518241,61712.0,61711.0,0.001222]
[1724777649051,0.50118241,61712.0,61711.0,0.001222]
[1724777649284,0.51518241,61712.0,61711.0,0.001222]
[1724777650216,0.41868241,61712.0,61711.0,0.001222]
[1724777653162,0.75868241,61712.0,61711.0,0.001222]
[1724777654731,0.74468241,61712.0,61711.0,0.001222]
[1724777655147,0.75868241,61712.0,61711.0,0.001222]
[1724777655366,0.73328338,61712.0,61711.0,0.001222]
[1724777655596,0.71928338,61712.0,61711.0,0.001222]
[1724777655856,0.37928338,61712.0,61711.0,0.001222]
[1724777656064,0.29328338,61712.0,61711.0,0.001222]
[1724777656474,0.23396545,61712.0,61711.0,0.001222]
[1724777657439,0.21996545,61712.0,61711.0,0.001222]
[1724777657650,0.33396545,61712.0,61711.0,0.001222]
[1724777658063,0.31996545,61712.0,61711.0,0.001222]
[1724777658455,0.33396545,61712.0,61711.0,0.001222]
[1724777658646,0.38360582,61712.0,61711.0,0.001222]
[1724777658985,0.39500397,61712.0,61711.0,0.001222]
[1724777659210,0.57144224,61712.0,61711.0,0.001222]
[1724777659462,0.40900397,61712.0,61711.0,0.001222]
[1724777659863,0.57990397,61712.0,61711.0,0.001222]
[1724777660276,0.67110397,61712.0,61711.0,0.001222]
[1724777660474,1.33429411,61712.0,61711.0,0.001222]
[1724777660678,1.41249411,61712.0,61711.0,0.001222]
[1724777660934,1.39849411,61712.0,61711.0,0.001222]
[1724777661407,1.41249411,61712.0,61711.0,0.00081054]
[1724777661842,1.22759411,61712.0,61711.0,0.00081054]
[1724777662071,1.24159411,61712.0,61711.0,0.00081054]
[1724777664517,1.07219411,61712.0,61711.0,0.00081054]
[1724777664740,1.04679596,61712.0,61711.0,0.00081054]
[1724777665222,0.28360582,61712.0,61711.0,0.17311054]
[1724777665730,0.21996545,61712.0,61711.0,0.17311054]
[1724777666170,0.23396545,61712.0,61711.0,0.17311054]
[1724777666422,0.3785591,61712.0,61711.0,0.17311054]
[1724777666639,0.17896545,61712.0,61711.0,0.19611054]
[1724777666905,0.21182136,61712.0,61711.0,0.19611054]
[1724777667376,0.3323542,61712.0,61711.0,0.19611054]
[1724777667597,0.31836877,61712.0,61711.0,0.19611054]
[1724777667845,0.33236877,61712.0,61711.0,0.19611054]
[1724777668062,0.35776486,61712.0,61711.0,0.19611054]